bitfinex/quotes_ETHUSD_20241108
["timestamp","ask_amount","ask_price","bid_price","bid_amount"]
[1731057105952,1.53295629,2905.8,2905.0,0.763]
[1731057107289,3.32348996,2906.2,2905.0,0.763]
[1731057112568,3.7939,2906.1,2905.0,0.763]
[1731057112783,0.711739,2906.0,2905.0,0.763]
[1731057114703,3.32348996,2905.9,2905.0,0.763]
[1731057116371,0.711739,2906.0,2905.0,0.763]
[1731057116372,4.10458996,2905.6,2905.0,0.763]
[1731057117671,0.7811,2905.6,2905.0,0.763]
[1731057118007,3.7984,2905.8,2905.0,0.763]
[1731057118581,3.0,2905.8,2905.0,0.763]
[1731057119290,0.8261,2905.7,2905.0,0.763]
[1731057119489,3.0,2905.5,2905.0,0.763]
[1731057120402,3.0,2905.5,2904.0,3.0]
[1731057120719,3.0,2905.5,2903.4,1.386829]
[1731057120720,4.12988996,2905.3,2904.1,0.7738]
[1731057120930,3.32348996,2905.0,2904.1,0.7738]
[1731057121093,1.138749,2904.9,2904.1,0.7738]
[1731057121418,4.138749,2904.9,2904.1,0.7738]
[1731057123015,3.32348996,2904.7,2904.1,0.7738]
[1731057124487,1.138749,2904.9,2904.1,0.7738]
[1731057124793,3.0,2905.0,2904.1,0.7738]
[1731057125387,0.7506,2904.7,2904.1,0.7738]
[1731057125594,3.32348996,2904.5,2904.1,0.7738]
[1731057126311,3.32348996,2904.5,2902.8,0.7728]
[1731057126523,3.32348996,2904.2,2903.0,0.7728]
[1731057128247,4.09148996,2904.2,2903.0,0.7728]
[1731057128394,3.0,2904.1,2903.0,0.7728]
[1731057128591,3.32348996,2903.9,2903.0,0.7728]
[1731057130248,3.32348996,2903.6,2903.0,0.7728]
[1731057130460,0.33774092,2906.1,2904.8,0.8375]
[1731057130671,0.33774092,2906.1,2905.1,0.01]
[1731057130819,0.33774092,2906.1,2905.2,0.8275]
[1731057131019,0.70386401,2906.1,2905.2,0.8275]
[1731057131549,3.32348996,2906.0,2905.2,0.41375]
[1731057131741,3.32348996,2905.7,2905.2,0.41375]
[1731057131935,4.14118996,2905.7,2904.5,0.02]
[1731057132170,4.14118996,2905.7,2904.5,0.01]
[1731057132480,0.414119,2905.6,2904.5,0.02]
[1731057133173,3.414119,2905.6,2904.5,0.02]
[1731057133945,3.414119,2905.6,2904.7,0.01]
[1731057134551,3.414119,2905.6,2904.8,0.7893]
[1731057134956,3.414119,2905.6,2904.7,0.01]
[1731057134957,0.414119,2905.6,2904.9,0.01]
[1731057135279,0.33774092,2906.1,2905.0,0.7893]
[1731057136263,3.33774092,2906.1,2905.0,0.7893]
[1731057136465,3.0,2905.8,2905.0,0.7893]
[1731057137176,3.0,2905.8,2905.0,0.7993]
[1731057139966,3.33774092,2906.1,2905.0,0.7993]
[1731057140152,0.8226,2906.7,2905.5,0.01]
[1731057140477,0.05953948,2907.1,2905.5,0.01]
[1731057140478,4.14608996,2907.0,2905.8,0.7675]
[1731057140774,3.32348996,2906.4,2905.8,0.35976562]
[1731057141588,3.0,2906.3,2905.8,0.35976562]
[1731057142098,3.0,2906.6,2905.8,0.35976562]
[1731057143090,3.0,2906.3,2905.8,0.35976562]
[1731057154479,6.32348996,2906.7,2905.8,0.35976562]
[1731057154820,1.856349,2906.6,2905.8,0.35976562]
[1731057155277,3.32348996,2906.4,2905.8,0.35976562]
[1731057155486,3.0,2906.3,2905.8,0.35976562]
[1731057158279,3.0,2906.0,2905.1,0.01]
[1731057160710,3.0,2906.0,2905.0,0.01]
[1731057160915,0.632349,2905.9,2905.0,0.01]
[1731057161293,0.632349,2905.9,2905.1,0.7671]
[1731057163701,0.632349,2905.9,2905.3,0.7715]
[1731057163901,3.0,2906.3,2905.3,0.7715]
[1731057173647,3.0,2906.3,2905.5,0.7565]
[1731057175944,3.0,2906.0,2905.5,0.7565]
[1731057176943,3.7818,2906.4,2905.5,0.7565]
[1731057177158,3.99677711,2906.4,2905.5,0.7565]
[1731057178316,3.0,2906.1,2905.5,0.7565]
[1731057180452,3.0,2905.8,2904.8,0.804]
[1731057180749,0.715649,2905.7,2904.8,0.804]
[1731057182119,3.32348996,2905.6,2904.8,0.804]
[1731057182647,3.0,2905.5,2904.8,0.804]
[1731057186265,0.715649,2905.7,2904.8,0.804]
[1731057186471,3.0,2905.8,2904.8,0.814]
[1731057186687,3.0,2905.8,2904.9,0.01]
[1731057186965,3.0,2905.8,2905.1,0.8256]
[1731057187174,12.24,2906.0,2905.1,0.8256]
[1731057188630,3.0,2905.9,2905.1,0.8256]
[1731057188828,1.524,2905.8,2905.1,0.8256]
[1731057189476,3.0,2905.9,2905.2,0.01]
[1731057189641,0.21497711,2906.4,2905.2,0.8503]
[1731057190175,3.32348996,2906.3,2905.2,0.8503]
[1731057190331,3.32348996,2906.3,2905.6,0.8278]
[1731057190534,0.35384671,2906.2,2905.6,0.8278]
[1731057191560,3.35384671,2906.2,2905.6,0.8278]
[1731057197267,2.16069575,2906.7,2906.0,0.8194]
[1731057197457,3.46223352,2906.9,2906.0,0.8194]
[1731057200764,3.0,2906.6,2906.0,0.8194]
[1731057200957,0.632349,2906.5,2906.0,0.8194]
[1731057201165,3.32348996,2906.4,2906.0,0.8194]
[1731057201595,3.0,2906.3,2906.0,0.8194]
[1731057202482,3.0,2906.3,2905.6,0.8204]
[1731057203180,3.0,2906.0,2905.6,0.8204]
[1731057203496,0.632349,2905.9,2905.0,0.8204]
[1731057204095,3.0,2905.7,2905.0,0.8204]
[1731057204403,3.32348996,2905.5,2905.0,0.8204]
[1731057204575,3.0,2905.4,2905.0,0.8204]
[1731057204774,0.632349,2905.3,2905.0,0.8204]
[1731057205185,0.632349,2905.3,2904.4,0.8173]
[1731057208210,3.0,2905.1,2904.4,0.8173]
[1731057208379,3.0,2904.8,2904.4,0.8173]
[1731057210418,3.78,2905.1,2904.4,0.8173]
[1731057210909,3.0,2905.1,2904.4,0.8173]
[1731057211619,3.32348996,2904.9,2904.4,0.8173]
[1731057211778,3.332349,2904.8,2904.4,0.8173]
[1731057213319,0.332349,2904.8,2904.4,0.8173]
[1731057213481,3.32348996,2905.2,2904.4,0.8173]
[1731057213482,3.0,2905.1,2904.4,0.8173]
[1731057213999,3.0,2904.8,2904.4,0.8173]
[1731057214575,3.7918,2904.8,2904.4,0.8173]
[1731057214777,3.7918,2904.8,2904.0,0.8102]
[1731057215423,3.32348996,2904.6,2904.0,0.8102]
[1731057215617,0.332349,2904.5,2904.0,0.8102]
[1731057215777,3.332349,2904.5,2904.0,0.8102]
[1731057216213,3.0,2904.8,2904.0,0.8102]
[1731057216741,12.24,2905.1,2904.4,0.01]
[1731057217024,12.24,2905.1,2904.8,0.8056]
[1731057217232,3.32348996,2905.8,2904.8,0.8056]
[1731057217429,3.32348996,2905.8,2904.9,0.8156]
[1731057217590,3.71907386,2905.8,2904.9,0.8156]
[1731057219007,3.0,2905.7,2904.9,0.8156]
[1731057220191,3.0,2905.7,2904.9,0.8056]
[1731057220393,3.32348996,2905.5,2904.9,0.8056]
[1731057220594,3.0,2905.4,2904.9,0.8056]
[1731057220792,3.632349,2905.4,2904.9,0.8056]
[1731057221018,3.32348996,2905.2,2904.9,0.8056]
[1731057221204,3.0,2905.1,2904.3,0.7578]
[1731057221949,3.632349,2905.4,2904.3,0.7578]
[1731057222792,3.632349,2905.4,2904.5,0.01]
[1731057223008,3.632349,2905.4,2904.6,0.8212]
[1731057223207,0.6955839,2905.3,2904.6,0.8212]
[1731057227969,3.0,2905.4,2904.8,0.7842]
[1731057228837,3.0,2905.7,2904.8,0.7942]
[1731057229644,3.32348996,2905.5,2904.8,0.7942]
[1731057229937,3.0,2905.4,2904.8,0.7942]
[1731057232564,3.0,2905.4,2904.8,0.7842]
[1731057232776,3.632349,2905.4,2904.8,0.7842]
[1731057233452,3.632349,2905.4,2904.8,0.7942]
[1731057233761,0.632349,2905.4,2904.8,0.7942]
[1731057233972,3.0,2905.7,2904.8,0.7942]
[1731057234761,3.0,2905.7,2904.8,0.7842]
[1731057235067,3.0,2905.7,2904.8,0.7942]
[1731057236932,3.32348996,2905.5,2904.8,0.7942]
[1731057237135,3.0,2905.4,2904.8,0.7942]
[1731057237935,3.0,2905.4,2904.8,0.7842]
[1731057238135,3.632349,2905.4,2904.8,0.7842]
[1731057239446,3.632349,2905.4,2904.8,0.7942]
[1731057240575,3.632349,2905.4,2904.8,0.7842]
[1731057240936,3.632349,2905.4,2904.8,0.7942]
[1731057241469,3.632349,2905.4,2904.8,0.7842]
[1731057241670,3.632349,2905.4,2904.8,0.7942]
[1731057242057,3.0,2905.4,2904.8,0.7942]
[1731057242435,3.0,2905.7,2904.8,0.7942]
[1731057243167,3.32348996,2905.5,2904.8,0.7842]
[1731057243471,3.0,2905.4,2904.8,0.7842]
[1731057244764,3.32348996,2905.2,2904.8,0.7842]
[1731057244983,0.332349,2905.1,2904.4,0.7627]
[1731057245165,3.32348996,2904.9,2904.4,0.7627]
[1731057245534,3.0,2904.8,2904.4,0.7627]
[1731057251272,0.7766,2905.1,2904.4,0.7627]
[1731057251467,3.0,2904.9,2904.4,0.7627]
[1731057253796,3.0,2905.2,2904.4,0.7627]
[1731057253977,4.856349,2905.2,2904.4,0.7627]
[1731057255306,3.0,2905.2,2904.4,0.7627]
[1731057261406,1.53485323,2905.0,2904.4,0.7627]
[1731057266585,5.97850033,2905.6,2904.4,0.7627]
[1731057266787,1.53485323,2905.3,2904.5,0.7939]
[1731057267212,1.53485323,2905.1,2904.5,0.7939]
[1731057267512,1.53485323,2905.6,2905.0,0.8257]
[1731057268073,1.53485323,2905.8,2905.0,0.8257]
[1731057268492,0.7551,2906.2,2905.2,0.7773]
[1731057268697,1.53485323,2906.0,2905.2,0.7773]
[1731057268978,1.53485323,2906.0,2905.3,0.01]
[1731057269310,1.53485323,2906.2,2905.6,0.8329]
[1731057271092,3.0,2906.3,2905.6,0.8329]
[1731057271432,3.32229985,2906.7,2905.8,0.8059]
[1731057271637,0.29565517,2906.6,2905.8,0.8059]
[1731057272498,3.29565517,2906.6,2905.8,0.8059]
[1731057273732,3.32229985,2907.0,2905.9,0.01]
[1731057273931,3.32229985,2907.0,2906.2,0.8059]
[1731057274430,3.32229985,2907.0,2906.4,0.8059]
[1731057275910,3.32229985,2907.0,2906.4,0.2059]
[1731057283118,3.0,2906.9,2906.4,0.2059]
[1731057283315,0.63222999,2906.8,2906.4,0.2059]
[1731057291507,1.53310822,2906.7,2906.4,0.2059]
[1731057293741,3.0,2907.2,2906.4,0.2059]
[1731057294051,1.53310822,2906.9,2906.4,0.2059]
[1731057296847,1.53310822,2906.9,2906.4,0.7701]
[1731057297934,1.53310822,2906.7,2906.4,0.7701]
[1731057301450,1.53310822,2906.7,2906.1,0.7817]
[1731057301617,1.53310822,2906.3,2906.1,0.7817]
[1731057301823,1.53310822,2906.5,2906.1,0.7817]
[1731057302411,12.24,2907.5,2906.1,0.7817]
[1731057302412,0.8196,2907.1,2906.1,0.7917]
[1731057302627,1.53310822,2907.0,2906.4,0.7534]
[1731057302922,0.1361101,2907.4,2906.4,0.7534]
[1731057303129,0.1361101,2907.4,2907.0,0.7691]
[1731057303717,1.53310822,2907.3,2907.0,0.7691]
[1731057304424,0.1361101,2907.4,2907.0,0.7691]
[1731057304425,1.53310822,2907.1,2907.0,0.7691]
[1731057304642,1.53310822,2907.1,2906.6,0.7721]
[1731057304954,1.53310822,2906.9,2906.6,0.7721]
[1731057308361,0.1361101,2907.4,2906.3,0.7861]
[1731057308362,1.53310822,2906.7,2906.3,0.7861]
[1731057309150,1.53310822,2906.9,2906.3,0.7861]
[1731057311022,3.9389101,2907.4,2906.3,0.7861]
[1731057311228,1.53310822,2907.1,2906.6,0.8163]
[1731057312561,1.53310822,2906.9,2906.6,0.8163]
[1731057314455,1.53310822,2907.1,2906.6,0.8163]
[1731057315332,0.1361101,2907.4,2906.8,0.02]
[1731057315533,1.53310822,2907.3,2906.9,0.8276]
[1731057316138,0.1361101,2907.4,2906.9,0.8276]
[1731057316354,1.53310822,2907.2,2906.9,0.8276]
[1731057317770,1.53310822,2907.0,2906.9,0.8276]
[1731057320130,1.53310822,2907.2,2906.9,0.8276]
[1731057320463,1.66921832,2907.4,2906.9,0.8276]
[1731057320627,0.1361101,2907.4,2907.3,0.7632]
[1731057321042,1.66921832,2907.4,2906.8,0.02]
[1731057321228,1.53310822,2907.2,2907.0,0.01]
[1731057321540,1.53310822,2907.2,2906.8,0.02]
[1731057321728,1.66921832,2907.4,2906.8,0.02]
[1731057321929,1.53310822,2907.2,2906.8,0.02]
[1731057323460,0.1361101,2907.4,2906.8,0.02]
[1731057324041,0.1361101,2907.4,2906.9,0.8082]
[1731057325466,0.78174603,2907.4,2906.9,0.8082]
[1731057326871,0.1361101,2907.4,2907.0,0.01]
[1731057327181,0.1361101,2907.4,2907.1,0.7974]
[1731057328272,0.1361101,2907.4,2907.1,0.78275045]
[1731057331238,3.9544101,2907.4,2906.8,0.02]
[1731057331439,4.68187603,2907.4,2906.8,0.7993]
[1731057332156,3.1361101,2907.4,2906.8,0.7993]
[1731057332479,0.1361101,2907.4,2907.0,0.01]
[1731057332683,0.1361101,2907.4,2907.1,0.7867]
[1731057337763,0.1361101,2907.4,2907.2,0.01]
[1731057338862,0.1361101,2907.4,2907.3,0.8128]
[1731057339796,0.1361101,2907.4,2907.1,0.8074]
[1731057340268,0.55793603,2907.4,2907.1,0.8074]
[1731057341088,3.55793603,2907.4,2906.7,0.8074]
[1731057346633,3.55793603,2907.4,2906.6,0.01]
[1731057346817,3.55793603,2907.4,2906.7,0.01]
[1731057347017,0.76400853,2907.3,2906.7,0.01]
[1731057349403,1.53257921,2907.2,2906.7,0.01]
[1731057349608,1.66868931,2907.4,2906.9,0.01]
[1731057351203,1.66868931,2907.4,2907.0,0.01]
[1731057353612,1.53257921,2907.2,2907.0,0.01]
[1731057356625,1.53257921,2907.2,2906.8,0.7656]
[1731057356949,2.35077921,2907.0,2906.5,0.02]
[1731057357949,2.35077921,2907.0,2906.5,0.01]
[1731057358149,2.58585713,2907.0,2906.5,0.02]
[1731057360365,2.35077921,2907.0,2906.5,0.02]
[1731057363962,2.35077921,2907.0,2906.5,0.01]
[1731057364145,1.53257921,2906.8,2906.3,0.02]
[1731057365830,2.35077921,2907.0,2906.5,0.01]
[1731057366247,2.35077921,2907.0,2906.5,0.02]
[1731057366428,0.23507792,2906.9,2906.5,0.02]
[1731057366626,2.35077921,2907.0,2906.5,0.02]
[1731057368073,1.53257921,2907.0,2906.6,0.7891]
[1731057368272,1.53257921,2907.0,2906.5,0.02]
[1731057368479,1.53257921,2906.8,2906.5,0.02]
[1731057368771,3.1361101,2907.4,2907.0,0.01]
[1731057368985,0.1361101,2907.4,2907.0,0.8091]
[1731057369972,0.1361101,2907.4,2907.3,0.8322]
[1731057374646,0.1361101,2907.4,2907.1,0.02]
[1731057374886,0.9438101,2907.4,2907.1,0.02]
[1731057375377,0.1361101,2907.4,2907.3,0.01]
[1731057375753,0.1361101,2907.4,2907.3,0.02]
[1731057376052,0.1361101,2907.4,2907.3,0.01]
[1731057376282,0.1361101,2907.4,2907.3,0.02]
[1731057377184,0.1361101,2907.4,2907.3,0.8199]
[1731057383303,0.1361101,2907.4,2907.3,0.02]
[1731057385997,0.1361101,2907.4,2907.3,0.01]
[1731057386837,0.1361101,2907.4,2907.1,0.02]
[1731057387127,0.8178,2907.3,2907.1,0.02]
[1731057387314,0.8178,2907.3,2906.9,0.02]
[1731057388897,0.1361101,2907.4,2907.1,0.01]
[1731057389439,0.1361101,2907.4,2907.2,0.01]
[1731057391544,0.1361101,2907.4,2907.3,0.01]
[1731057391849,0.1361101,2907.4,2907.2,0.01]
[1731057392446,0.1361101,2907.4,2906.7,0.2903]
[1731057393521,0.1361101,2907.4,2906.4,0.55]
[1731057393708,0.1361101,2907.4,2906.3,1.62093011]
[1731057393709,0.1361101,2907.4,2906.6,0.55]
[1731057393907,0.1361101,2907.4,2906.7,0.06879392]
[1731057394212,0.1361101,2907.4,2906.6,0.55]
[1731057394517,0.0861101,2907.4,2906.6,0.55]
[1731057395312,0.0861101,2907.4,2906.7,0.4382]
[1731057396723,0.0861101,2907.4,2906.8,0.06879456]
[1731057397135,0.0861101,2907.4,2906.9,0.4382]
[1731057398218,0.0861101,2907.4,2907.0,0.06879451]
[1731057399126,0.0861101,2907.4,2907.1,0.4382]
[1731057399465,0.0861101,2907.4,2907.1,0.50698956]
[1731057400328,0.0861101,2907.4,2907.1,0.51698956]
[1731057400947,0.0861101,2907.4,2907.2,0.55]
[1731057401268,0.0861101,2907.4,2907.3,1.05698086]
[1731057401470,0.0861101,2907.4,2907.3,1.43775012]
[1731057402466,0.0861101,2907.4,2907.3,1.44775012]
[1731057406739,0.0861101,2907.4,2907.3,1.0082]
[1731057407956,0.0861101,2907.4,2907.2,0.4382]
[1731057408858,0.0861101,2907.4,2907.3,0.01]
[1731057409182,0.0861101,2907.4,2907.3,0.56]
[1731057410672,0.0861101,2907.4,2907.3,0.9982]
[1731057411259,0.0861101,2907.4,2907.3,1.0082]
[1731057412849,0.0861101,2907.4,2907.3,1.07697289]
[1731057413170,0.0861101,2907.4,2907.3,1.0082]
[1731057414487,0.0861101,2907.4,2907.3,0.9982]
[1731057414887,0.0861101,2907.4,2907.3,1.0082]
[1731057416356,0.0861101,2907.4,2907.3,1.44087203]
[1731057417595,0.0861101,2907.4,2907.3,1.0082]
[1731057419456,0.0861101,2907.4,2907.3,4.0082]
[1731057420268,0.0861101,2907.4,2907.3,4.07697148]
[1731057420572,0.0861101,2907.4,2907.3,4.0082]
[1731057425103,0.8141,2908.5,2907.8,0.01]
[1731057425264,0.8141,2908.5,2908.0,0.55]
[1731057425460,0.7619,2908.7,2908.2,0.55]
[1731057425659,0.7619,2908.7,2908.3,0.06875644]
[1731057425862,0.7619,2908.7,2908.4,0.55]
[1731057426164,0.7619,2908.7,2908.5,0.06875633]
[1731057426604,0.7619,2908.7,2908.2,0.55]
[1731057426774,0.7619,2908.7,2908.2,1.23768773]
[1731057428979,0.7619,2908.7,2908.1,0.01]
[1731057429596,0.805,2909.2,2908.2,0.4382]
[1731057429799,0.805,2909.2,2908.3,3.9356319]
[1731057430108,0.805,2909.2,2908.5,0.55]
[1731057430314,0.805,2909.2,2908.5,0.56]
[1731057430481,0.805,2909.2,2908.7,0.55]
[1731057430684,0.805,2909.2,2908.5,0.56]
[1731057432696,0.805,2909.2,2908.5,0.01]
[1731057433279,0.805,2909.2,2908.2,0.4382]
[1731057433582,0.805,2909.2,2907.9,0.02]
[1731057433821,0.805,2909.2,2908.0,0.34582]
[1731057434923,0.805,2909.2,2908.1,0.55]
[1731057436506,0.805,2909.2,2908.1,0.56]
[1731057436822,0.805,2909.2,2908.2,0.4382]
[1731057437020,0.805,2909.2,2908.3,0.55]
[1731057438015,0.805,2909.2,2908.3,0.56]
[1731057438487,0.805,2909.2,2908.3,0.57]
[1731057438893,0.805,2909.2,2908.5,0.56]
[1731057439111,0.805,2909.2,2908.6,0.39982]
[1731057443602,0.805,2909.2,2908.5,0.56]
[1731057443603,0.805,2909.2,2908.5,0.01]
[1731057443816,3.8929101,2910.3,2908.9,1.52997315]
[1731057444120,0.7568,2910.2,2909.5,1.52997315]
[1731057444491,0.7568,2910.2,2909.3,5.07997315]
[1731057444699,0.7568,2910.2,2909.4,0.50899732]
[1731057445403,0.1361101,2910.3,2908.3,0.01]
[1731057445404,0.7957,2909.4,2908.3,0.01]
[1731057445734,0.7957,2909.4,2908.6,1.52997315]
[1731057445899,0.7957,2909.4,2908.7,0.06874202]
[1731057446319,0.7957,2909.4,2908.6,1.52997315]
[1731057446538,0.7957,2909.4,2908.6,1.53997315]
[1731057446908,0.7957,2909.4,2908.6,0.01]
[1731057447212,0.7957,2909.4,2908.6,0.50999732]
[1731057447414,0.7957,2909.4,2908.3,0.01]
[1731057447617,2.32567315,2909.4,2908.1,0.02]
[1731057447928,0.755,2909.3,2908.1,0.01]
[1731057448315,0.755,2909.3,2908.3,0.01]
[1731057448634,0.755,2909.3,2908.3,1.53997315]
[1731057448943,0.755,2909.3,2908.4,0.45499731]
[1731057449150,0.755,2909.3,2908.4,0.55]
[1731057449507,0.755,2909.3,2908.5,1.53997315]
[1731057449911,0.755,2909.3,2908.6,0.55]
[1731057450828,0.755,2909.3,2908.5,0.02]
[1731057451313,0.755,2909.3,2908.5,0.4582]
[1731057451512,0.755,2909.3,2908.6,3.618744]
[1731057451817,0.755,2909.3,2908.7,0.57069172]
[1731057452115,0.755,2909.3,2908.8,0.06874243]
[1731057452337,0.755,2909.3,2908.9,2.08997315]
[1731057452552,0.755,2909.3,2909.0,0.06874019]
[1731057453233,0.755,2909.3,2908.6,0.01]
[1731057453435,0.755,2909.3,2908.6,0.56]
[1731057453750,0.755,2909.3,2908.6,0.55]
[1731057453951,0.755,2909.3,2908.7,0.40982]
[1731057454158,0.755,2909.3,2908.7,0.01]
[1731057454515,0.755,2909.3,2908.7,0.56]
[1731057454718,0.755,2909.3,2908.7,0.01]
[1731057455356,0.7976,2909.6,2909.0,0.01]
[1731057455661,0.7976,2909.6,2909.1,0.55]
[1731057455840,0.7976,2909.6,2909.0,0.01]
[1731057457581,0.7976,2909.6,2909.2,0.55]
[1731057461439,0.7976,2909.6,2909.1,0.4482]
[1731057461641,0.8189,2910.2,2909.2,3.61873391]
[1731057461941,0.8189,2910.2,2909.4,0.55]
[1731057462144,0.8189,2910.2,2909.5,0.28872118]
[1731057462341,0.8189,2910.2,2909.6,0.55]
[1731057462955,2.52165845,2911.6,2909.6,0.55]
[1731057462956,1.03983569,2911.9,2910.9,17.17]
[1731057463271,1.03983569,2911.9,2911.0,1.717]
[1731057463434,0.7567,2911.8,2910.6,0.55]
[1731057463771,0.7567,2911.8,2910.5,0.55]
[1731057464130,0.781,2911.6,2910.5,0.55]
[1731057464635,0.781,2911.3,2910.4,0.01]
[1731057464834,0.781,2911.3,2910.4,0.56]
[1731057465146,0.781,2911.3,2910.2,0.55]
[1731057465331,0.781,2911.3,2910.4,0.55]
[1731057465527,0.781,2911.3,2910.5,0.25472316]
[1731057465762,0.781,2911.3,2910.6,0.25472316]
[1731057465981,0.781,2911.3,2910.5,0.25472316]
[1731057466156,0.781,2911.3,2910.6,0.25472316]
[1731057466472,0.781,2911.3,2910.5,0.25472316]
[1731057466637,0.781,2911.3,2910.6,0.25472316]
[1731057466973,0.781,2911.3,2910.5,0.25472316]
[1731057467171,0.8062,2911.2,2910.6,0.25472316]
[1731057467329,0.8062,2911.2,2910.1,0.55]
[1731057467535,0.8062,2911.2,2910.2,0.25472316]
[1731057467835,0.8062,2911.2,2909.9,0.01]
[1731057467836,0.8062,2911.2,2910.3,0.06870814]
[1731057468159,0.8062,2911.2,2910.3,0.25457871]
[1731057468349,0.8062,2911.2,2910.4,0.25457871]
[1731057468533,0.8062,2911.2,2910.5,0.25457871]
[1731057469229,0.8062,2911.2,2910.6,0.25450336]
[1731057469433,0.8062,2911.2,2910.1,0.01]
[1731057469434,0.8062,2911.2,2910.3,0.55]
[1731057469762,0.8062,2911.2,2910.4,0.25450336]
[1731057469957,0.8062,2911.2,2910.5,0.25450336]
[1731057470286,0.8062,2911.2,2910.4,0.25450336]
[1731057470584,0.8062,2911.2,2910.5,0.25450336]
[1731057470784,0.8062,2911.2,2910.4,0.25450336]
[1731057470996,0.8062,2911.2,2910.5,0.25450336]
[1731057471172,0.8062,2911.2,2910.4,0.25450336]
[1731057471373,0.8062,2911.2,2910.5,0.25450336]
[1731057471548,0.8062,2911.2,2910.4,0.25450336]
[1731057471749,0.8062,2911.2,2910.5,0.25434061]
[1731057471978,0.8062,2911.2,2910.4,0.55]
[1731057472185,0.8062,2911.2,2910.6,0.55]
[1731057472393,0.8062,2911.2,2910.7,0.25434061]
[1731057472590,0.8062,2911.2,2910.8,0.25434061]
[1731057472782,0.8062,2911.2,2910.7,0.25434061]
[1731057472986,4.11730862,2911.2,2910.8,0.25434061]
[1731057473306,0.01,2912.0,2910.2,0.25434061]
[1731057473307,0.803,2910.8,2910.2,0.25434061]
[1731057473804,0.803,2910.8,2910.3,0.25434061]
[1731057473989,0.803,2910.8,2909.7,0.25434061]
[1731057474188,0.803,2910.8,2909.8,0.25434061]
[1731057474373,0.803,2910.8,2909.9,0.25434061]
[1731057474692,0.803,2910.8,2910.0,0.25434061]
[1731057475001,0.80180424,2910.8,2910.1,0.25434061]
[1731057475168,0.80180424,2910.8,2910.1,0.59475557]
[1731057475498,0.80180424,2910.8,2910.2,0.25434061]
[1731057475684,0.80180424,2910.8,2910.3,0.25434061]
[1731057475889,0.80180424,2910.8,2910.4,0.25434061]
[1731057476184,3.0,2911.7,2910.5,0.32304733]
[1731057476360,0.63111086,2911.6,2910.6,0.25434061]
[1731057476561,0.63111086,2911.6,2910.7,0.25434061]
[1731057476863,0.63111086,2911.6,2910.3,0.55]
[1731057477055,0.63111086,2911.6,2910.4,0.25434061]
[1731057477256,0.63111086,2911.6,2910.5,0.25434061]
[1731057477495,0.36311109,2911.5,2910.6,0.25434061]
[1731057477703,0.36311109,2911.5,2910.4,0.25434061]
[1731057477994,0.7821,2911.4,2910.5,0.25434061]
[1731057478191,0.7821,2911.4,2910.6,0.25434061]
[1731057478399,0.7821,2911.4,2910.7,0.25434061]
[1731057478582,0.7821,2911.4,2910.8,0.25434061]
[1731057478762,0.7821,2911.4,2910.3,0.55]
[1731057478967,0.7821,2911.4,2910.4,0.25436302]
[1731057479170,0.7821,2911.4,2910.5,0.25436302]
[1731057479469,0.7821,2911.4,2910.6,0.25436302]
[1731057479668,0.7821,2911.4,2910.7,0.25436302]
[1731057479904,0.7821,2911.4,2910.8,0.25436302]
[1731057480085,0.7821,2911.4,2910.3,0.25436302]
[1731057480290,0.7821,2911.4,2910.4,0.25436302]
[1731057480597,0.7821,2911.4,2910.5,0.25436302]
[1731057480802,0.7821,2911.4,2910.6,0.25436302]
[1731057481096,0.7821,2911.4,2910.7,0.25436302]
[1731057481296,0.7821,2911.4,2910.8,0.25436302]
[1731057481503,0.7821,2911.4,2910.3,0.25436302]
[1731057481708,0.7821,2911.4,2910.4,0.25436302]
[1731057482005,0.7821,2911.4,2910.5,0.25436302]
[1731057482303,0.7821,2911.4,2910.6,0.25436302]
[1731057482504,0.7821,2911.4,2910.7,0.25436302]
[1731057482667,0.7821,2911.4,2910.8,0.25436302]
[1731057482870,0.7821,2911.4,2910.9,0.25436302]
[1731057483178,0.7821,2911.4,2910.3,0.25436302]
[1731057483382,0.7821,2911.4,2910.4,0.25436302]
[1731057483700,0.7821,2911.4,2910.5,0.25436302]
[1731057483999,0.7821,2911.4,2910.6,0.25436302]
[1731057484203,0.7821,2911.4,2910.7,0.25436302]
[1731057484414,0.8114,2911.1,2910.8,0.25436302]
[1731057484704,0.8114,2911.1,2909.7,0.25436302]
[1731057484867,0.8114,2911.1,2909.6,0.72875566]
[1731057485066,0.8114,2911.1,2909.8,0.25485969]
[1731057485267,0.8114,2911.1,2909.7,0.25485969]
[1731057485466,0.8082,2911.0,2909.8,0.25485969]
[1731057485708,0.8082,2911.0,2909.9,0.25485969]
[1731057485889,0.8082,2911.0,2910.0,0.25485969]
[1731057486076,1.26135595,2911.0,2910.1,0.25497239]
[1731057486281,3.31110862,2910.9,2910.2,0.25497239]
[1731057486487,3.31110862,2910.9,2909.5,0.75999732]
[1731057486488,0.8099,2910.8,2910.3,0.25497239]
[1731057486701,0.8099,2910.8,2910.4,0.25497239]
[1731057486903,0.7542,2910.6,2910.5,0.25497239]
[1731057487304,0.7542,2910.6,2909.5,0.55]
[1731057487605,0.7542,2910.6,2909.6,0.25497239]
[1731057487789,0.7542,2910.6,2909.7,0.25497239]
[1731057488102,0.7542,2910.6,2909.8,0.25497239]
[1731057488305,0.7542,2910.6,2909.9,0.25497239]
[1731057488533,4.06530862,2910.6,2910.0,0.25497239]
[1731057488699,0.7622,2910.4,2910.1,0.25497239]
[1731057489003,0.7622,2910.4,2909.2,0.59475557]